bitfinex/quotes_ETHUSD_20250210
["timestamp","ask_amount","ask_price","bid_price","bid_amount"]
[1739159425337,4.5486798,2634.7,2633.8,2.40277405]
[1739159425538,3.79579,2634.5,2633.8,2.40277405]
[1739159425865,3.79584,2634.5,2633.8,6.19955405]
[1739159426040,3.79584,2634.5,2633.8,2.40277405]
[1739159426238,3.79595,2634.4,2633.8,2.40277405]
[1739159426561,3.79584,2634.5,2633.8,6.19954405]
[1739159426766,3.79574,2634.6,2633.9,0.7853]
[1739159426963,4.5486698,2634.7,2633.9,0.7853]
[1739159427128,3.79566,2634.6,2633.9,0.7853]
[1739159427328,4.5486698,2634.7,2633.9,0.7853]
[1739159427329,4.5486698,2634.7,2634.0,3.79646]
[1739159427730,4.5486698,2634.7,2633.9,4.58185]
[1739159427731,3.79499,2635.1,2634.2,2.40277405]
[1739159428038,3.79476,2635.3,2634.6,2.40277405]
[1739159428239,3.79497,2635.1,2634.6,2.40277405]
[1739159429271,3.79507,2635.0,2634.6,2.40277405]
[1739159429541,3.79497,2635.1,2634.6,2.40277405]
[1739159429695,3.79479,2635.2,2634.6,2.40277405]
[1739159429853,3.79493,2635.1,2634.6,2.40277405]
[1739159430573,0.7576,2636.4,2635.0,3.18807405]
[1739159430754,3.79381,2635.9,2635.0,6.98310405]
[1739159430949,3.79381,2635.9,2635.0,10.77807405]
[1739159430950,3.79407,2635.7,2635.0,10.77807405]
[1739159431297,3.79407,2635.7,2635.0,6.98304405]
[1739159431452,3.79407,2635.7,2635.0,10.77800405]
[1739159431652,3.79407,2635.7,2635.3,2.15827017]
[1739159432292,3.79381,2635.9,2635.6,2.15827017]
[1739159432463,3.79354,2636.1,2635.6,2.15827017]
[1739159432670,3.79367,2636.0,2635.6,2.15827017]
[1739159433104,0.77163014,2636.0,2635.9,2.15827017]
[1739159434396,0.77163014,2636.0,2635.3,3.79457]
[1739159434397,0.77163014,2636.0,2635.3,2.15827017]
[1739159434697,3.79405,2635.8,2635.3,2.15827017]
[1739159434894,3.79435,2635.5,2635.3,2.15827017]
[1739159436285,3.79449,2635.4,2635.0,2.15827017]
[1739159436467,3.79395,2635.8,2635.3,2.15827017]
[1739159436870,3.79406,2635.7,2635.3,2.15827017]
[1739159437506,3.79395,2635.8,2635.3,5.95289017]
[1739159437657,7.58797,2635.8,2635.4,0.7623]
[1739159438356,3.79423,2635.6,2635.4,0.7623]
[1739159438892,3.7947,2635.3,2635.0,2.15827017]
[1739159439102,3.79492,2635.1,2634.7,2.15827017]
[1739159439253,3.79522,2634.9,2634.7,2.15827017]
[1739159439461,3.79517,2635.0,2634.7,2.15827017]
[1739159439797,0.7826,2635.4,2634.7,2.15827017]
[1739159439966,3.79474,2635.3,2634.8,3.79534]
[1739159440168,3.79474,2635.3,2634.7,2.15827017]
[1739159440472,0.19169926,2636.0,2635.0,5.95325017]
[1739159440473,3.79414,2635.7,2635.0,5.95325017]
[1739159440668,3.79414,2635.7,2634.8,4.55763]
[1739159440669,0.7826,2636.4,2635.6,2.15827017]
[1739159440887,3.79391,2635.8,2635.6,2.15827017]
[1739159442197,7.58793,2635.8,2635.6,2.15827017]
[1739159442407,3.79391,2635.8,2635.6,2.15827017]
[1739159442902,3.79405,2635.7,2635.6,2.15827017]
[1739159443405,0.7826,2636.4,2635.6,2.15827017]
[1739159443406,3.79364,2636.0,2635.6,2.15827017]
[1739159443563,3.79379,2635.9,2635.6,2.15827017]
[1739159444399,3.79394,2635.8,2635.6,2.15827017]
[1739159445481,4.5584661,2636.0,2635.6,2.15827017]
[1739159445689,3.7938,2635.9,2635.6,2.15827017]
[1739159445889,3.79414,2635.7,2635.4,0.7623]
[1739159446211,3.79391,2635.8,2635.3,2.15827017]
[1739159446360,3.79422,2635.6,2635.3,2.15827017]
[1739159447011,0.7647861,2636.0,2635.0,2.15827017]
[1739159447012,3.79459,2635.4,2635.0,2.15827017]
[1739159447159,3.79424,2635.6,2635.0,2.15827017]
[1739159447365,0.7647861,2636.0,2635.4,0.7646]
[1739159447366,4.5585061,2636.0,2635.4,0.7646]
[1739159447565,3.79399,2635.8,2635.6,2.15827017]
[1739159447798,0.7647861,2636.0,2635.3,2.15827017]
[1739159448108,3.79449,2635.4,2635.3,2.15827017]
[1739159448463,3.79434,2635.5,2635.0,2.92287017]
[1739159448659,3.79492,2635.1,2635.0,2.15827017]
[1739159448970,3.79464,2635.3,2635.0,2.15827017]
[1739159449175,3.79479,2635.2,2635.0,2.15827017]
[1739159449504,3.79449,2635.4,2635.0,2.15827017]
[1739159449717,0.96323769,2635.8,2635.0,2.15827017]
[1739159449870,3.79448,2635.5,2635.0,2.15827017]
[1739159450462,3.79431,2635.6,2635.3,2.15827017]
[1739159450899,0.96323769,2635.8,2635.3,2.15827017]
[1739159450900,3.79437,2635.5,2635.3,2.15827017]
[1739159451363,7.58884,2635.5,2635.3,2.15827017]
[1739159451569,3.79449,2635.4,2635.3,2.15827017]
[1739159451879,3.79465,2635.3,2635.0,2.15827017]
[1739159452498,3.7948,2635.2,2635.0,2.15827017]
[1739159452705,3.79531,2634.9,2634.7,2.15827017]
[1739159452901,3.79578,2634.5,2634.4,2.15827017]
[1739159453513,3.79559,2634.7,2634.4,2.15827017]
[1739159453714,3.79559,2634.7,2633.7,3.55]
[1739159453715,0.19053968,2635.0,2632.8,0.18732951]
[1739159453918,0.8059,2634.5,2633.2,2.15827017]
[1739159454213,3.79732,2633.5,2633.2,2.15827017]
[1739159454714,0.94346681,2634.2,2633.2,2.15827017]
[1739159454715,1.74936681,2634.2,2633.2,2.15827017]
[1739159454888,1.56327198,2634.2,2633.6,2.15827017]
[1739159455089,3.79672,2633.9,2633.6,2.15827017]
[1739159455284,3.79737,2633.4,2633.0,2.15827017]
[1739159455486,3.79752,2633.3,2633.0,2.15827017]
[1739159455815,3.79731,2633.5,2633.0,2.15827017]
[1739159456011,3.79762,2633.3,2633.0,2.15827017]
[1739159456513,3.79731,2633.5,2633.0,2.15827017]
[1739159456819,3.79762,2633.3,2633.0,2.15827017]
[1739159457002,3.79768,2633.2,2633.0,2.15827017]
[1739159457175,11.39166,2633.5,2632.7,2.15827017]
[1739159457377,3.7982,2632.9,2632.4,2.96477017]
[1739159457576,3.79825,2632.8,2632.4,2.96477017]
[1739159457802,3.7982,2632.9,2632.4,2.96477017]
[1739159458413,3.79783,2633.1,2632.7,2.15827017]
[1739159458598,3.79813,2632.9,2632.7,2.15827017]
[1739159459308,0.74307266,2633.0,2632.7,2.15827017]
[1739159459520,3.79753,2633.3,2632.7,2.15827017]
[1739159459744,3.79753,2633.3,2633.0,2.15827017]
[1739159460246,3.79768,2633.2,2633.0,2.15827017]
[1739159460545,4.60413,2632.8,2632.4,2.15827017]
[1739159460732,3.79852,2632.6,2632.4,2.15827017]
[1739159461103,0.8059,2633.1,2632.5,0.8065]
[1739159461303,3.79806,2633.0,2632.7,2.15827017]
[1739159462205,3.79823,2632.8,2632.7,2.15827017]
[1739159462400,3.79844,2632.7,2632.4,2.15827017]
[1739159462600,3.79867,2632.5,2632.4,2.15827017]
[1739159462825,3.79851,2632.7,2632.1,2.96477017]
[1739159463039,3.79903,2632.3,2632.1,2.15827017]
[1739159463241,3.7987,2632.5,2632.1,2.15827017]
[1739159463447,3.79839,2632.7,2632.4,2.15827017]
[1739159463646,0.8059,2633.2,2632.5,0.8065]
[1739159463828,3.79804,2633.0,2632.7,2.15827017]
[1739159464219,3.79823,2632.8,2632.7,2.15827017]
[1739159464750,3.79804,2633.0,2632.7,2.15827017]
[1739159464966,3.79771,2633.2,2632.7,2.15827017]
[1739159465104,3.7974,2633.4,2632.7,2.15827017]
[1739159465304,0.8059,2633.8,2633.1,0.8065]
[1739159465511,0.75872429,2633.8,2633.3,2.15827017]
[1739159465835,3.79704,2633.7,2633.3,2.15827017]
[1739159466017,0.75872429,2633.8,2633.0,2.15827017]
[1739159466345,3.79765,2633.3,2633.0,2.15827017]
[1739159466847,3.79763,2633.3,2633.0,2.15827017]
[1739159467431,3.79724,2633.5,2633.0,2.15827017]
[1739159467632,3.79699,2633.7,2633.3,2.15827017]
[1739159468136,4.55557429,2633.8,2633.3,2.15827017]
[1739159468340,3.79666,2633.9,2633.3,2.15827017]
[1739159468683,3.79661,2634.0,2633.6,2.15827017]
[1739159469276,0.7510412,2634.2,2633.6,5.95528017]
[1739159469437,4.5473712,2634.2,2633.9,2.15827017]
[1739159469775,0.7849,2634.5,2633.9,2.15827017]
[1739159469981,0.7849,2634.9,2634.2,2.15827017]
[1739159470140,3.79607,2634.4,2634.2,2.15827017]
[1739159470342,3.79607,2634.3,2634.2,2.15827017]
[1739159470542,3.79607,2634.4,2634.2,2.15827017]
[1739159470861,3.79607,2634.3,2634.0,0.831]
[1739159471358,3.79607,2634.4,2634.0,0.831]
[1739159471662,0.7849,2634.9,2634.2,2.15827017]
[1739159471867,3.79565,2634.6,2634.2,2.15827017]
[1739159473425,3.79539,2634.8,2634.2,2.15827017]
[1739159473552,3.79516,2635.0,2634.5,2.15827017]
[1739159473882,4.54425925,2635.0,2634.5,2.15827017]
[1739159474241,0.74909925,2635.0,2634.5,2.15827017]
[1739159474438,3.79607,2634.3,2634.0,0.831]
[1739159474750,3.79578,2634.5,2633.9,2.15827017]
[1739159474965,3.79578,2634.5,2633.5,3.7971]
[1739159474966,6.79564,2634.6,2633.6,2.15827017]
[1739159475167,3.79722,2633.5,2633.3,2.15827017]
[1739159475401,3.79693,2633.7,2633.3,2.15827017]
[1739159475689,3.79668,2633.9,2633.6,2.15827017]
[1739159475903,3.79681,2633.8,2633.6,2.15827017]
[1739159476098,3.79693,2633.7,2633.6,2.15827017]
[1739159476398,3.79668,2633.9,2633.6,2.15827017]
[1739159476577,3.7965,2634.0,2633.6,2.15827017]
[1739159476883,4.54455711,2634.1,2633.7,0.831]
[1739159477093,3.79718,2633.6,2633.3,2.98927017]
[1739159477273,3.79731,2633.5,2633.3,2.98927017]
[1739159477457,3.79737,2633.4,2633.3,2.15827017]
[1739159477980,0.7849,2633.8,2633.3,2.15827017]
[1739159478296,3.79695,2633.7,2633.3,2.15827017]
[1739159478509,3.79689,2633.8,2633.3,2.15827017]
[1739159478714,3.79656,2634.0,2633.3,2.15827017]
[1739159478874,3.7967,2633.9,2633.3,5.95576017]
[1739159479074,3.79666,2633.9,2633.4,0.831]
[1739159479374,3.79704,2633.7,2633.4,0.831]
[1739159479811,7.5934,2633.9,2633.4,0.831]
[1739159480020,3.79642,2634.1,2633.7,2.15827017]
[1739159480225,3.79609,2634.3,2633.7,2.15827017]
[1739159480520,3.79561,2634.7,2634.1,3.79635]
[1739159480728,3.79561,2634.7,2634.4,2.15827017]
[1739159481173,3.79526,2634.9,2634.4,2.15827017]
[1739159481368,0.74816664,2635.0,2634.4,2.15827017]
[1739159481618,3.79536,2634.8,2634.4,2.15827017]
[1739159481968,3.7953,2634.9,2634.4,2.15827017]
[1739159482169,3.79537,2634.8,2634.4,2.15827017]
[1739159482494,4.77309082,2635.4,2634.0,4.62745]
[1739159482495,3.79482,2635.2,2634.7,2.15827017]
[1739159483080,4.54192218,2635.2,2634.7,2.15827017]
[1739159483613,3.79465,2635.3,2635.0,2.15827017]
[1739159483765,3.79455,2635.4,2635.0,2.15827017]
[1739159483970,3.79487,2635.2,2635.0,2.15827017]
[1739159485213,3.7945,2635.4,2635.0,2.15827017]
[1739159485598,3.79464,2635.3,2635.0,2.15827017]
[1739159486057,3.79479,2635.2,2635.0,2.15827017]
[1739159486735,3.7945,2635.4,2635.0,2.15827017]
[1739159486945,3.79466,2635.3,2635.0,2.15827017]
[1739159487094,4.56050726,2635.5,2634.7,2.15827017]
[1739159487293,3.79517,2635.0,2634.7,2.15827017]
[1739159487922,3.79561,2634.7,2634.4,2.15827017]
[1739159488139,3.79521,2634.9,2634.4,2.15827017]
[1739159488290,3.79522,2634.9,2634.4,2.15827017]
[1739159488494,3.79573,2634.6,2634.4,2.15827017]
[1739159489196,3.79606,2634.4,2634.1,2.15827017]
[1739159489398,3.79621,2634.2,2634.1,2.15827017]
[1739159489799,3.79621,2634.2,2633.8,2.15827017]
[1739159489922,3.79643,2634.1,2633.8,2.15827017]
[1739159490122,3.79653,2634.0,2633.8,2.15827017]
[1739159490334,3.79603,2634.4,2633.8,2.15827017]
[1739159490714,3.79622,2634.2,2633.8,2.15827017]
[1739159491343,3.79596,2634.4,2633.8,2.15827017]
[1739159491544,3.79596,2634.4,2634.1,2.15827017]
[1739159491850,0.7849,2634.8,2634.2,0.831]
[1739159491851,3.7954,2634.8,2634.2,0.831]
[1739159492051,3.79573,2634.6,2634.2,0.831]
[1739159492460,0.97353012,2635.1,2634.4,2.15827017]
[1739159492668,3.7953,2634.9,2634.4,2.15827017]
[1739159492962,0.97353012,2635.1,2634.4,5.95417017]
[1739159492963,3.79498,2635.1,2634.4,5.95417017]
[1739159493273,3.79508,2635.0,2634.4,2.15827017]
[1739159493606,3.79508,2635.0,2634.7,2.15827017]
[1739159494462,3.79469,2635.3,2634.7,5.95370017]
[1739159494623,3.79469,2635.3,2635.0,2.15827017]
[1739159494836,3.7944,2635.5,2635.0,2.15827017]
[1739159495267,3.79463,2635.3,2635.0,2.15827017]
[1739159496389,4.55625987,2635.5,2635.0,2.15827017]
[1739159496663,3.79451,2635.4,2635.0,2.15827017]
[1739159497074,3.79465,2635.3,2635.0,2.15827017]
[1739159497428,3.79449,2635.4,2635.0,2.15827017]
[1739159497964,8.35070987,2635.5,2635.0,2.15827017]
[1739159498130,3.79451,2635.4,2635.0,2.15827017]
[1739159498332,3.79415,2635.7,2635.0,2.15827017]
[1739159498558,3.79415,2635.7,2635.3,2.15827017]
[1739159499372,3.79421,2635.6,2635.3,2.15827017]
[1739159499975,0.76140395,2635.8,2635.4,0.7549]
[1739159500169,4.55545395,2635.8,2635.4,0.7549]
[1739159500479,3.79407,2635.7,2635.4,0.7549]
[1739159500974,0.76140395,2635.8,2635.1,0.7549]
[1739159501195,0.8016,2635.6,2635.0,2.15827017]
[1739159501542,3.79492,2635.1,2635.0,2.15827017]
[1739159501943,7.58938,2635.3,2635.0,2.15827017]
[1739159502143,3.79488,2635.2,2635.0,2.15827017]
[1739159502371,3.79464,2635.3,2635.0,2.15827017]
[1739159502578,3.79441,2635.5,2635.0,5.95331017]
[1739159502778,0.76140395,2635.8,2635.3,2.15827017]
[1739159503087,0.76140395,2635.8,2635.0,2.15827017]
[1739159503088,3.79475,2635.3,2635.0,2.15827017]
[1739159503380,3.79492,2635.1,2635.0,2.15827017]
[1739159503590,7.58951,2635.3,2635.0,2.15827017]
[1739159503898,3.79474,2635.3,2635.0,2.15827017]
[1739159504382,3.79442,2635.5,2635.0,2.15827017]
[1739159504583,3.79442,2635.5,2635.0,5.95333017]
[1739159504963,3.79407,2635.7,2635.4,0.7549]
[1739159505416,0.76140395,2635.8,2635.4,0.7549]
[1739159505718,3.79356,2636.1,2635.6,5.95243017]
[1739159506520,3.79488,2635.2,2634.7,2.15827017]
[1739159506669,0.8016,2636.0,2634.7,2.15827017]
[1739159506877,3.79501,2635.1,2634.7,2.15827017]
[1739159507183,3.79521,2634.9,2634.7,2.15827017]
[1739159507370,3.79535,2634.8,2634.7,2.15827017]
[1739159507569,3.79551,2634.7,2634.5,0.7549]
[1739159507812,3.79564,2634.6,2634.4,2.15827017]
[1739159507984,3.79551,2634.7,2634.4,2.15827017]
[1739159508181,3.79578,2634.5,2634.2,0.7549]
[1739159508386,3.79595,2634.4,2634.2,0.7549]
[1739159508582,3.7955,2634.7,2634.2,0.7549]
[1739159508989,3.79589,2634.5,2634.2,0.7549]
[1739159509209,3.79593,2634.4,2634.2,0.7549]
[1739159509413,3.79607,2634.3,2634.1,2.15827017]
[1739159510807,3.79589,2634.5,2634.1,2.15827017]
[1739159510975,7.59181,2634.5,2634.1,2.15827017]
[1739159511381,3.79594,2634.4,2634.1,2.15827017]
[1739159512321,3.79589,2634.5,2634.1,2.15827017]
[1739159512524,4.55744054,2634.7,2634.4,2.15827017]
[1739159512817,3.79553,2634.7,2634.4,2.15827017]
[1739159513317,3.79536,2634.8,2634.4,2.15827017]
[1739159514017,3.79555,2634.7,2634.4,2.15827017]
[1739159514631,0.7775,2635.4,2634.6,0.7567]
[1739159514932,3.79545,2634.8,2634.6,0.7567]
[1739159515511,0.7775,2635.4,2634.6,0.7567]
[1739159515709,3.79522,2634.9,2634.6,0.7567]
[1739159515908,4.5373083,2635.0,2634.6,0.7567]
[1739159516237,3.79547,2634.8,2634.6,0.7567]
[1739159516435,3.79547,2634.8,2634.4,2.15827017]
[1739159516436,3.79565,2634.6,2634.4,2.15827017]
[1739159516809,0.7421483,2635.0,2634.4,2.15827017]
[1739159517014,0.7527135,2635.5,2635.2,3.79472]
[1739159517210,0.7775,2635.9,2635.4,5.95267017]
[1739159517402,3.79378,2635.9,2635.4,2.15827017]
[1739159517602,3.79377,2635.9,2635.4,5.95270017]
[1739159517838,3.79403,2635.8,2635.4,2.15827017]
[1739159518026,3.79407,2635.7,2635.4,2.15827017]
[1739159518434,0.75567783,2636.0,2635.4,2.15827017]
[1739159518435,3.79432,2635.6,2635.4,2.15827017]
[1739159519547,3.79434,2635.5,2635.4,2.15827017]
[1739159519739,3.79434,2635.5,2635.1,2.15827017]
[1739159520044,3.79405,2635.7,2634.8,2.91497017]
[1739159520254,3.7775,2635.8,2634.8,2.15827017]
[1739159520255,3.79521,2634.9,2634.8,2.15827017]
[1739159520543,3.79557,2634.7,2634.5,2.91497017]
[1739159520702,3.79557,2634.7,2634.5,2.15827017]
[1739159521413,0.7775,2635.1,2634.2,2.91497017]
[1739159521414,3.79506,2635.0,2634.2,2.91497017]
[1739159521629,3.79607,2634.3,2634.2,2.15827017]
[1739159521797,3.79607,2634.3,2633.9,2.15827017]
[1739159522204,3.79555,2634.7,2634.2,2.15827017]
[1739159522523,3.79564,2634.6,2634.5,2.15827017]
[1739159522706,0.7775,2635.1,2634.5,2.15827017]
[1739159522910,7.5906,2634.9,2634.5,2.15827017]
[1739159523206,3.79539,2634.8,2634.5,2.15827017]
[1739159523420,4.57244,2635.1,2634.5,2.15827017]
[1739159523621,3.79439,2635.5,2634.8,2.15827017]
[1739159523831,3.79479,2635.2,2634.8,2.15827017]
[1739159524068,3.79501,2635.1,2634.8,2.15827017]
[1739159524818,3.79521,2634.9,2634.8,2.15827017]
[1739159525062,3.79564,2634.6,2634.5,2.15827017]
[1739159525419,3.79544,2634.8,2634.5,2.15827017]
[1739159526015,3.7955,2634.7,2634.5,2.15827017]
[1739159526274,3.79607,2634.3,2634.2,2.15827017]
[1739159526634,3.79593,2634.4,2634.2,2.15827017]
[1739159526837,3.79592,2634.5,2634.2,2.15827017]
[1739159527021,3.79591,2634.5,2634.2,2.15827017]
[1739159527225,3.79607,2634.3,2634.2,2.15827017]
[1739159527869,3.7576,2635.1,2634.3,3.79597]
[1739159527870,3.79511,2635.0,2634.3,3.79597]
[1739159528168,3.7945,2635.4,2634.8,3.79533]
[1739159528322,3.7945,2635.4,2635.0,2.15827017]
[1739159528522,3.79427,2635.6,2635.0,6.70379017]
[1739159528829,0.77041777,2635.7,2635.0,6.70379017]
[1739159528830,3.79454,2635.4,2635.0,2.90887017]
[1739159529250,3.79429,2635.6,2635.0,6.70380017]
[1739159529562,3.79429,2635.6,2635.3,2.15827017]
[1739159529977,3.79472,2635.3,2635.0,2.90887017]
[1739159530122,3.7944,2635.5,2635.0,2.90887017]
[1739159530461,3.79449,2635.4,2635.0,2.90887017]
[1739159530644,3.79468,2635.3,2635.0,2.90887017]
[1739159530964,3.79561,2634.7,2634.4,2.15827017]
[1739159531136,3.79565,2634.6,2634.4,2.15827017]
[1739159531343,3.7953,2634.9,2634.4,2.15827017]
[1739159531526,3.79498,2635.1,2634.7,2.15827017]
[1739159531723,3.79498,2635.1,2634.4,2.15827017]
[1739159532063,3.79575,2634.6,2634.4,2.15827017]
[1739159532273,3.79545,2634.8,2634.4,2.15827017]
[1739159532931,7.59029,2635.0,2634.4,2.15827017]
[1739159533355,7.59029,2635.0,2633.9,0.55]
[1739159533356,3.79458,2635.4,2634.8,0.7506]
[1739159533562,7.58918,2635.4,2634.8,0.7506]
[1739159533771,3.79479,2635.2,2634.8,0.7506]
[1739159534065,3.79515,2635.0,2634.7,2.15827017]
[1739159534265,3.79535,2634.8,2634.7,2.15827017]
[1739159534571,3.79535,2634.8,2634.1,3.79622]
[1739159534572,7.59083,2634.8,2634.4,2.15827017]
[1739159534768,3.79535,2634.8,2634.4,2.15827017]
[1739159535079,3.79429,2635.6,2634.0,3.0]
[1739159535080,3.79484,2635.2,2634.8,0.7506]
[1739159535438,4.55568864,2635.4,2635.0,2.15827017]
[1739159535644,3.79453,2635.4,2635.0,2.15827017]
[1739159535962,7.58913,2635.4,2635.0,2.15827017]
[1739159536177,3.79453,2635.4,2635.0,2.15827017]
[1739159536380,3.7949,2635.2,2635.0,2.15827017]
[1739159536885,3.79466,2635.3,2635.0,2.15827017]
[1739159537238,7.58737,2635.9,2635.0,2.15827017]
[1739159537239,3.79433,2635.6,2635.0,2.15827017]
[1739159537470,3.79412,2635.7,2635.3,2.15827017]
[1739159537663,3.79422,2635.6,2635.3,2.15827017]
[1739159537979,3.79434,2635.5,2635.3,2.15827017]
[1739159538879,4.55307011,2635.7,2635.4,0.7506]
[1739159539044,0.75895011,2635.7,2635.4,0.7506]
[1739159539467,4.55303011,2635.7,2635.4,0.7506]
[1739159540179,4.55313011,2635.7,2635.3,2.15827017]
[1739159540557,0.75895011,2635.7,2635.3,2.15827017]
[1739159540755,3.79445,2635.5,2635.3,2.15827017]
[1739159540958,7.5889,2635.5,2635.3,2.15827017]
[1739159541259,3.79445,2635.5,2635.3,2.15827017]
[1739159542085,7.5889,2635.5,2635.3,2.15827017]
[1739159542284,7.5889,2635.5,2634.7,3.79544]
[1739159542285,3.79515,2635.0,2634.8,0.7506]
[1739159542893,3.79482,2635.2,2634.8,0.7506]
[1739159543245,7.58971,2635.2,2634.8,0.7506]
[1739159543556,7.58971,2635.2,2634.7,2.15827017]
[1739159543557,3.7951,2635.0,2634.7,2.15827017]
[1739159543952,8.33604387,2635.2,2634.7,2.15827017]
[1739159544155,4.54115387,2635.2,2634.7,2.15827017]
[1739159544583,4.54115387,2635.2,2634.6,3.79551]
[1739159544584,3.79428,2635.6,2635.0,2.15827017]
[1739159544767,3.79406,2635.7,2635.3,2.15827017]
[1739159544979,3.79447,2635.5,2635.1,0.7615]
[1739159545176,3.7945,2635.4,2635.1,0.7615]
[1739159546185,0.8323,2635.5,2634.8,0.7615]
[1739159546398,3.79492,2635.1,2634.8,0.7615]
[1739159546549,3.79508,2635.0,2634.8,0.7615]
[1739159546857,3.79508,2635.0,2634.7,2.15827017]
[1739159547185,3.79472,2635.3,2634.7,2.15827017]
[1739159547384,3.79472,2635.3,2635.0,2.15827017]
[1739159548073,4.56675556,2635.6,2635.1,0.7615]
[1739159548279,4.56679556,2635.6,2635.1,0.7615]
[1739159548450,3.79458,2635.4,2635.1,0.7615]
[1739159548653,3.79477,2635.2,2635.0,2.15827017]
[1739159548947,3.79457,2635.4,2635.0,2.15827017]
[1739159549379,7.58918,2635.4,2635.0,2.15827017]
[1739159549578,3.79457,2635.4,2635.0,2.15827017]
[1739159549781,3.79506,2635.0,2634.8,0.7615]
[1739159550039,3.79506,2635.0,2634.7,2.15827017]
[1739159550296,3.79535,2634.8,2634.7,2.15827017]
[1739159551152,7.59024,2635.0,2634.7,2.15827017]
[1739159551467,4.55825749,2635.0,2634.7,2.15827017]
[1739159552196,3.79486,2635.2,2634.7,5.95376017]
[1739159552395,4.56182606,2635.4,2635.0,2.15827017]
[1739159552604,3.79428,2635.6,2635.3,2.15827017]
[1739159552906,7.58799,2635.8,2635.3,2.15827017]
[1739159553067,3.7937,2636.0,2635.6,2.15827017]
[1739159553472,3.7937,2636.0,2635.7,0.7615]
[1739159553685,3.79377,2635.9,2635.7,0.7615]
[1739159554077,3.7937,2636.0,2635.7,0.7615]
[1739159554802,0.76562439,2636.2,2635.9,2.15827017]
[1739159555785,0.8323,2637.2,2635.9,2.15827017]
[1739159555966,3.79434,2635.5,2635.1,8.61276964]
[1739159556169,0.18625811,2636.4,2635.1,2.94477017]
[1739159556170,3.79477,2635.2,2635.1,2.94477017]
[1739159556408,0.7627,2636.0,2635.1,2.94477017]
[1739159556565,3.79372,2636.0,2635.5,2.15827017]
[1739159556770,3.7942,2635.6,2635.2,2.15827017]
[1739159556975,0.76577636,2636.1,2635.2,2.15827017]
[1739159556976,3.79463,2635.3,2635.2,2.15827017]
[1739159557701,3.79445,2635.5,2635.2,2.15827017]
[1739159557856,3.79451,2635.4,2635.2,2.15827017]
[1739159558303,3.79463,2635.3,2634.9,2.15827017]
[1739159558804,5.31458807,2635.7,2635.2,2.15827017]
[1739159559011,3.79436,2635.5,2635.2,2.15827017]
[1739159559903,3.79365,2636.0,2635.4,3.7944]
[1739159560082,3.79377,2635.9,2635.3,2.94477017]
[1739159560274,4.56543543,2636.1,2635.3,6.73935017]
[1739159560474,3.79365,2636.0,2635.4,3.79438]
[1739159560665,3.79319,2636.3,2635.6,5.95237017]
[1739159560870,3.79291,2636.5,2635.8,3.79382]
[1739159561874,0.7627,2636.7,2635.7,0.7865]
[1739159561875,3.79334,2636.2,2635.7,0.7865]
[1739159562289,0.76758608,2636.6,2635.3,2.94477017]
[1739159562566,3.79431,2635.6,2635.3,2.94477017]
[1739159562761,3.79368,2636.0,2635.3,2.94477017]
[1739159562997,3.79404,2635.8,2635.3,2.94477017]
[1739159563177,3.79415,2635.7,2635.3,2.94477017]
[1739159563481,3.79449,2635.4,2635.3,0.7865]
[1739159563686,3.79421,2635.6,2635.3,0.7865]
[1739159563891,3.79436,2635.5,2635.3,0.7865]
[1739159564093,3.79464,2635.3,2635.0,2.94477017]
[1739159564304,3.79488,2635.2,2635.0,0.7865]
[1739159564801,3.7945,2635.4,2635.0,0.7865]
[1739159565209,3.79427,2635.6,2635.0,6.73983017]
[1739159565765,3.79395,2635.8,2635.1,3.79488]
[1739159565766,7.58795,2635.8,2635.1,3.79488]
[1739159565968,3.79368,2636.0,2635.3,2.15827017]
[1739159566202,3.79391,2635.9,2635.3,2.15827017]
[1739159566384,3.79331,2636.3,2635.4,0.7865]
[1739159566596,3.79372,2636.0,2635.4,4.58088]
[1739159567109,3.79357,2636.1,2635.4,4.58088]
[1739159567479,3.79357,2636.1,2635.5,3.79429]
[1739159568706,3.79357,2636.1,2635.4,4.58087]
[1739159568912,3.79285,2636.6,2635.7,3.79405]
[1739159569207,3.79277,2636.6,2636.0,4.58012]
[1739159569412,3.79301,2636.5,2636.0,0.7865]
[1739159569569,3.79305,2636.4,2636.0,0.7865]
[1739159570219,3.79315,2636.4,2636.0,0.7865]
[1739159570520,3.79441,2635.5,2635.4,0.7865]
[1739159570808,3.79431,2635.6,2635.4,0.7865]
[1739159571319,3.79434,2635.5,2635.1,0.8221]
[1739159571607,3.79431,2635.6,2635.1,0.8221]
[1739159572109,3.79477,2635.2,2635.1,0.8221]
[1739159572271,3.79459,2635.4,2634.8,4.61744]
[1739159572471,7.58921,2635.4,2634.8,4.61744]
[1739159572671,3.79459,2635.4,2634.8,4.61744]
[1739159573009,3.79459,2635.4,2634.8,0.8221]
[1739159573207,3.79464,2635.3,2634.8,0.8221]
[1739159573926,7.58858,2635.6,2635.0,3.79505]
[1739159574142,3.79427,2635.6,2635.0,3.79505]
[1739159574421,3.7945,2635.4,2634.8,4.61735]
[1739159574983,3.7947,2635.3,2634.8,0.8221]
[1739159575404,3.79486,2635.2,2634.8,0.8221]
[1739159576322,3.79455,2635.4,2634.8,4.61742]
[1739159576496,3.79455,2635.4,2634.8,8.41268]
[1739159576698,3.79455,2635.4,2634.8,0.8221]
[1739159576897,3.79455,2635.4,2634.8,4.61741]
[1739159577130,3.79401,2635.8,2635.1,3.7948]
[1739159577420,3.79415,2635.7,2635.1,3.7948]
[1739159577624,3.79438,2635.5,2634.8,0.8221]
[1739159577794,3.79467,2635.3,2634.8,0.8221]
[1739159578197,8.36011335,2635.5,2634.8,0.8221]
[1739159578425,3.7941,2635.7,2634.8,3.8221]
[1739159578719,3.79458,2635.4,2634.8,0.8221]
[1739159578883,3.79473,2635.3,2634.8,0.8221]
[1739159579080,3.79486,2635.2,2634.8,0.8221]
[1739159579285,0.752,2635.6,2634.7,2.15827017]
[1739159579486,3.7951,2635.0,2634.4,6.77627017]
[1739159579911,3.7951,2635.0,2634.4,2.98037017]
[1739159580118,3.79536,2634.8,2634.4,2.98037017]
[1739159580536,3.79512,2635.0,2634.4,2.98037017]
[1739159580838,3.79512,2635.0,2633.7,10.25138947]